bitfinex-derivatives/quotes_ETHF0:USTF0_20250327
["timestamp","ask_amount","ask_price","bid_price","bid_amount"]
[1743104140360,1.65371,2012.2,2012.1,3.2078]
[1743104140764,0.99426,2011.9,2011.8,0.00745768]
[1743104140966,0.99426,2011.9,2011.8,1.34345768]
[1743104141966,0.99426,2011.9,2011.8,2.33776768]
[1743104144865,0.99426,2011.9,2011.8,1.34345768]
[1743104145371,0.99426,2011.9,2011.8,2.33776768]
[1743104147867,0.99426,2011.9,2011.8,0.00745768]
[1743104148075,1.67886,2011.9,2011.8,0.00745768]
[1743104148266,3.06956,2011.9,2011.8,0.00745768]
[1743104149570,0.99446,2011.5,2011.4,3.9161]
[1743104149775,0.99446,2011.5,2011.4,6.3998]
[1743104149969,0.99446,2011.5,2011.4,7.39431]
[1743104150671,0.99446,2011.5,2011.4,6.3998]
[1743104150871,0.99451,2011.4,2011.3,4.5236]
[1743104154683,0.99451,2011.4,2011.3,5.51816]
[1743104155677,0.99451,2011.4,2011.3,4.5236]
[1743104156080,0.99451,2011.4,2011.3,5.51816]
[1743104156586,0.99451,2011.4,2011.3,4.5236]
[1743104157486,0.99451,2011.4,2011.3,5.51816]
[1743104157688,0.99451,2011.4,2011.3,4.5236]
[1743104157889,0.99451,2011.4,2011.3,1.3316]
[1743104162691,0.00745768,2011.7,2011.3,4.5394]
[1743104162989,0.99407,2012.3,2012.2,0.99406]
[1743104163186,0.99414,2012.2,2012.1,0.99412]
[1743104163889,0.99416,2012.1,2012.0,3.8558]
[1743104164196,1.65266,2012.1,2012.0,3.201]
[1743104164891,1.65266,2012.1,2012.0,4.19521]
[1743104173308,2.36576,2012.1,2012.0,4.19521]
[1743104177104,1.3716,2012.1,2012.0,4.19521]
[1743104177293,2.36576,2012.1,2012.0,4.19521]
[1743104177492,3.80806,2012.1,2012.0,4.19521]
[1743104178205,3.2078,2012.4,2012.1,2.4853]
[1743104178407,2.1517,2012.5,2012.4,0.99401]
[1743104178594,0.6558,2012.6,2012.5,0.99396]
[1743104178797,2.0981,2012.6,2012.5,0.99396]
[1743104178998,3.09201,2012.6,2012.5,0.99396]
[1743104179397,2.0981,2012.6,2012.5,0.99396]
[1743104179599,3.09201,2012.6,2012.5,0.99396]
[1743104180305,2.0981,2012.6,2012.5,0.99396]
[1743104180601,3.2078,2013.0,2012.6,0.99391]
[1743104180804,1.3261,2012.9,2012.8,0.99377]
[1743104181206,1.3261,2012.9,2012.8,2.43237]
[1743104181707,2.34796,2013.0,2012.8,2.43237]
[1743104181708,2.34796,2013.0,2012.9,0.99377]
[1743104181908,3.67406,2013.0,2012.9,2.43237]
[1743104182611,1.69176,2013.0,2012.9,2.43237]
[1743104184403,1.69172,2013.0,2012.9,2.43237]
[1743104186308,0.6563,2013.3,2013.0,0.99372]
[1743104186506,2.35194,2013.2,2013.1,2.43052]
[1743104190209,2.35194,2013.2,2013.1,2.43057]
[1743104190905,2.35194,2013.2,2013.1,0.99367]
[1743104191213,0.99364,2013.2,2013.1,0.99367]
[1743104191409,2.41364,2013.2,2013.1,0.99367]
[1743104197006,2.41364,2013.2,2013.1,2.31317]
[1743104200618,2.41362,2013.2,2013.1,2.31317]
[1743104206807,3.14023,2013.3,2013.2,0.99362]
[1743104206808,0.6563,2013.3,2013.2,0.99362]
[1743104207010,1.71272,2013.4,2013.3,0.99357]
[1743104207519,3.06342,2013.4,2013.3,0.99357]
[1743104207718,3.06342,2013.4,2013.3,2.41747]
[1743104212622,3.06342,2013.4,2013.3,1.4239]
[1743104212926,3.06342,2013.4,2013.3,2.41747]
[1743104215332,0.99352,2013.4,2013.3,2.41747]
[1743104215521,0.99352,2013.4,2013.3,3.10917]
[1743104218020,8.17505,2013.6,2013.5,0.9934]
[1743104218021,0.99346,2013.6,2013.5,0.9934]
[1743104218526,0.99346,2013.6,2013.5,2.3539]
[1743104219425,0.99346,2013.6,2013.5,5.5439]
[1743104219627,0.99342,2013.7,2013.6,0.99337]
[1743104219813,0.99342,2013.7,2013.6,3.02297]
[1743104220823,2.39642,2013.7,2013.6,3.02297]
[1743104223219,2.39642,2013.7,2013.6,1.36]
[1743104223530,0.99352,2013.4,2013.3,0.00745768]
[1743104224125,0.99352,2013.4,2013.3,1.41445768]
[1743104224520,0.99352,2013.4,2012.9,1.3847]
[1743104224521,2.48393,2013.3,2012.5,26.1078]
[1743104224726,0.99391,2012.6,2012.5,3.2078]
[1743104225121,0.99391,2012.6,2012.5,4.20176]
[1743104225427,0.99391,2012.6,2012.5,4.20173]
[1743104225625,0.99391,2012.6,2012.5,3.2078]
[1743104225824,0.99391,2012.6,2012.5,5.51926]
[1743104228126,0.99391,2012.6,2012.5,4.5253]
[1743104228625,2.37021,2012.6,2012.5,1.3175]
[1743104230732,2.37021,2012.6,2012.5,2.31146]
[1743104231032,0.99391,2012.6,2012.5,5.51926]
[1743104231230,1.6585,2012.7,2012.6,0.99391]
[1743104231426,1.6585,2012.7,2012.6,1.3587]
[1743104232934,0.99401,2012.4,2012.3,1.69331768]
[1743104233135,0.99401,2012.4,2012.3,4.88331768]
[1743104234137,0.994,2012.5,2012.4,0.99398]
[1743104234731,0.994,2012.5,2012.3,3.88925768]
[1743104234934,0.99401,2012.4,2012.3,4.88328768]
[1743104235532,0.99401,2012.4,2012.3,6.29648768]
[1743104237336,0.99401,2012.4,2012.3,5.60568768]
[1743104239735,0.99401,2012.4,2012.3,4.61165768]
[1743104239934,0.99401,2012.4,2012.3,5.60571768]
[1743104245238,0.00745768,2012.6,2012.5,0.99396]
[1743104245645,1.00136768,2012.6,2012.5,0.99396]
[1743104245848,0.00745768,2012.6,2012.5,5.60896]
[1743104246143,4.20155,2013.0,2012.9,0.99377]
[1743104246338,3.03141,2013.1,2013.0,0.99372]
[1743104246537,3.03141,2013.1,2013.0,2.40042]
[1743104246938,2.48388,2013.4,2013.0,1.4067]
[1743104247141,1.4061,2013.4,2013.3,0.99357]
[1743104247346,1.67829,2013.5,2013.4,0.99352]
[1743104247541,1.67829,2013.5,2013.4,4.18452]
[1743104247938,0.99347,2013.5,2013.4,5.52812]
[1743104249350,0.99347,2013.5,2013.4,4.5346]
[1743104249541,0.99347,2013.5,2013.4,5.52812]
[1743104252044,3.05156,2013.6,2013.5,0.99347]
[1743104252240,2.0581,2013.6,2013.5,2.39907]
[1743104252548,0.652,2013.6,2013.5,2.39907]
[1743104252742,1.64542,2013.6,2013.5,2.39907]
[1743104253250,4.20121,2013.7,2013.6,0.99342]
[1743104255551,0.99341,2013.7,2013.6,0.99342]
[1743104256343,3.11865,2013.8,2013.7,0.99337]
[1743104256546,0.6707,2014.0,2013.9,0.99327]
[1743104256747,0.99326,2014.0,2013.9,4.20107]
[1743104257151,0.99326,2014.0,2013.9,5.52497]
[1743104258454,0.99326,2014.0,2013.9,4.5317]
[1743104258954,0.99326,2014.0,2013.9,5.52497]
[1743104259547,0.99322,2014.0,2013.9,5.52495]
[1743104259753,3.2078,2014.3,2013.9,4.5317]
[1743104259953,0.99318,2014.1,2014.0,5.50518]
[1743104264654,1.3489,2014.2,2014.1,0.99317]
[1743104264655,2.34203,2014.2,2014.1,0.99317]
[1743104264853,2.34203,2014.2,2014.1,2.40027]
[1743104265858,1.3489,2014.2,2014.1,2.40027]
[1743104266153,2.34202,2014.2,2014.1,2.40027]
[1743104267566,1.3489,2014.2,2013.8,0.6711]
[1743104267752,0.99327,2013.9,2013.8,0.99327]
[1743104267958,0.99327,2013.9,2013.8,4.18227]
[1743104269355,2.33967,2013.9,2013.8,4.18227]
[1743104270358,0.99332,2013.8,2013.7,2.39343]
[1743104270560,1.355,2013.8,2013.7,5.58243]
[1743104270758,2.33971,2013.9,2013.8,0.99332]
[1743104270957,2.33971,2013.9,2013.8,2.39342]
[1743104271165,2.34824,2014.0,2013.9,0.99327]
[1743104271463,0.99324,2014.0,2013.9,5.50597]
[1743104274055,0.99324,2014.0,2013.9,2.29817]
[1743104274261,2.33634,2014.0,2013.9,2.29817]
[1743104277261,2.33634,2014.0,2013.9,1.3049]
[1743104277567,2.33634,2014.0,2013.9,2.29817]
[1743104278664,2.33634,2014.0,2013.9,1.3049]
[1743104279059,0.99337,2013.7,2013.6,3.2078]
[1743104279362,0.99347,2013.5,2013.4,0.99351]
[1743104279661,0.99347,2013.5,2013.4,3.189]
[1743104280259,0.99347,2013.5,2013.4,4.18252]
[1743104280464,2.41257,2013.5,2013.4,5.55152]
[1743104280661,2.41257,2013.5,2013.4,4.558]
[1743104280867,2.41257,2013.5,2013.4,5.55152]
[1743104282470,0.99347,2013.5,2013.4,5.55152]
[1743104282660,0.99347,2013.5,2013.4,5.2455]
[1743104282854,0.99347,2013.5,2013.4,6.23902]
[1743104283061,2.41257,2013.5,2013.4,5.55152]
[1743104284564,2.41257,2013.5,2013.4,4.558]
[1743104284769,2.41257,2013.5,2013.4,5.55152]
[1743104285069,2.41257,2013.5,2013.4,4.558]
[1743104285564,2.41257,2013.5,2013.4,5.55152]
[1743104285869,2.41257,2013.5,2013.4,4.558]
[1743104286260,2.41257,2013.5,2013.4,5.55152]
[1743104287268,2.41257,2013.5,2013.4,4.558]
[1743104287666,2.41257,2013.5,2013.4,5.55152]
[1743104288072,2.41257,2013.5,2013.4,4.558]
[1743104288274,2.41257,2013.5,2013.4,5.55152]
[1743104289168,2.41257,2013.5,2013.4,4.558]
[1743104290969,2.41257,2013.5,2013.4,1.369]
[1743104291178,2.41257,2013.5,2013.4,4.558]
[1743104292179,2.41257,2013.5,2013.4,5.55152]
[1743104292770,0.99347,2013.5,2013.4,5.55152]
[1743104293177,2.37896,2013.6,2013.5,0.99347]
[1743104293372,2.37896,2013.6,2013.5,2.31897]
[1743104293970,2.37896,2013.6,2013.5,1.3255]
[1743104294170,2.37896,2013.6,2013.5,2.31897]
[1743104295468,2.37896,2013.6,2013.5,2.0005]
[1743104295669,2.37896,2013.6,2013.5,2.99397]
[1743104297470,0.99352,2013.4,2013.3,0.00745768]
[1743104297671,4.20132,2013.4,2013.3,0.00745768]
[1743104298373,0.99367,2013.1,2013.0,1.3652]
[1743104298678,0.99367,2013.1,2013.0,4.5542]
[1743104299277,2.40247,2013.1,2013.0,4.5542]
[1743104299774,2.40247,2013.1,2013.0,5.54792]
[1743104300175,2.40247,2013.1,2013.0,4.5542]
[1743104300370,2.40247,2013.1,2013.0,5.54792]
[1743104300570,2.40247,2013.1,2013.0,4.5542]
[1743104301579,0.99372,2013.0,2012.9,56.4988]
[1743104301878,2.41142,2013.0,2012.9,57.8356]
[1743104302473,2.41142,2013.0,2012.9,50.102]
[1743104302877,0.99377,2012.9,2012.8,3.19645768]
[1743104303078,3.13137,2012.9,2012.8,3.19645768]
[1743104303471,3.13137,2012.9,2012.8,4.53325768]
[1743104305175,3.13137,2012.9,2012.8,1.34425768]
[1743104305365,3.13137,2012.9,2012.8,0.00745768]
[1743104315984,3.13137,2012.9,2012.8,7.68e-06]
[1743104316189,5.63137,2012.9,2012.8,7.68e-06]
[1743104319888,11.58337,2012.9,2012.8,7.68e-06]
[1743104325096,12.27437,2012.9,2012.8,7.68e-06]
[1743104325595,9.08337,2012.9,2012.8,7.68e-06]
[1743104325989,3.13137,2012.9,2012.8,7.68e-06]
[1743104326190,0.99377,2012.9,2012.8,7.68e-06]
[1743104326592,0.99377,2012.9,2012.8,1.33570768]
[1743104326793,0.99377,2012.9,2012.8,2.05280768]
[1743104334499,0.99377,2012.9,2012.8,3.04661768]
[1743104334694,0.99375,2013.0,2012.9,0.99374]
[1743104334901,0.99375,2013.0,2012.9,1.3668]
[1743104342114,2.36755,2013.0,2012.9,1.3668]
[1743104342612,0.99377,2012.9,2012.8,7.68e-06]
[1743104342803,3.06307,2012.9,2012.8,7.68e-06]
[1743104358218,5.56307,2012.9,2012.8,7.68e-06]
[1743104359314,5.64474439,2012.9,2012.8,7.68e-06]
[1743104359513,6.41468404,2012.9,2012.8,7.68e-06]
[1743104359817,13.25440386,2012.9,2012.8,7.68e-06]
[1743104360618,0.99406,2012.3,2012.2,1.4344]
[1743104360820,4.20186,2012.3,2012.2,1.4344]
[1743104361021,0.99416,2012.1,2012.0,0.6736]
[1743104361918,0.99421,2012.0,2011.9,0.702]
[1743104362116,0.99426,2011.9,2011.8,0.00745768]
[1743104362313,2.41986,2011.9,2011.8,0.00745768]
[1743104362616,3.07706,2011.9,2011.8,0.00745768]
[1743104363416,3.07706,2011.9,2011.8,7.68e-06]
[1743104367223,0.99431,2011.8,2011.7,0.17410768]
[1743104367523,0.99436,2011.7,2011.6,0.31799768]
[1743104367718,0.99436,2011.7,2011.3,22.9]
[1743104367719,0.99451,2011.4,2011.3,21.89926]
[1743104367919,0.99461,2011.2,2011.1,50.106]
[1743104368518,0.9947,2011.0,2010.9,3.19845768]
[1743104368715,4.2025,2011.0,2010.9,3.19845768]
[1743104371216,0.9947,2011.0,2010.9,3.19845768]
[1743104374817,0.9947,2011.0,2010.9,4.54025768]
[1743104377029,0.9947,2011.0,2010.9,5.53500768]
[1743104388830,0.99469,2011.1,2011.0,0.99465]
[1743104392730,2.37249768,2011.2,2011.1,0.99465]
[1743104394435,1.37785768,2011.2,2011.1,0.99465]
[1743104395636,2.37246768,2011.2,2011.1,0.99465]
[1743104395831,1.37785768,2011.2,2011.1,0.99465]
[1743104396037,2.37246768,2011.2,2011.1,0.99465]
[1743104396536,1.37785768,2011.2,2011.1,0.99465]
[1743104397945,2.37246768,2011.2,2011.1,0.99465]
[1743104398139,1.37785768,2011.2,2011.1,0.99465]
[1743104398444,2.37246768,2011.2,2011.1,0.99465]
[1743104399449,1.37785768,2011.2,2011.1,0.99465]
[1743104399638,2.37246768,2011.2,2011.1,0.99465]
[1743104399838,3.02826768,2011.2,2011.1,0.99465]
[1743104400642,1.37785768,2011.2,2011.1,0.99465]
[1743104401245,1.3738,2011.4,2011.3,0.99456]
[1743104401455,4.20221,2011.6,2011.5,0.99446]
[1743104401636,0.9944,2011.7,2011.6,0.99434]
[1743104401841,1.7139,2011.7,2011.6,0.99434]
[1743104402046,1.7139,2011.7,2011.6,4.18634]
[1743104402248,1.71386,2011.7,2011.6,4.18634]
[1743104402442,0.7195,2011.7,2011.6,4.18634]
[1743104402646,0.7195,2011.7,2011.6,5.49554]
[1743104403642,3.07966,2011.7,2011.6,5.49554]
[1743104403843,2.0853,2011.7,2011.6,5.49554]
[1743104404050,3.07966,2011.7,2011.6,5.49554]
[1743104405250,2.0853,2011.7,2011.6,5.49554]
[1743104405840,3.07966,2011.7,2011.6,5.49554]
[1743104408045,3.07966,2011.7,2011.6,4.18634]
[1743104409956,0.99441,2011.6,2011.5,0.99442]
[1743104410157,3.08841,2011.6,2011.5,0.99442]
[1743104410856,0.99446,2011.5,2011.4,4.18547]
[1743104411056,2.33926,2011.5,2011.4,4.18547]
[1743104411447,0.99451,2011.4,2011.3,3.2078]
[1743104411649,3.03431,2011.4,2011.3,7.39336]
[1743104413350,3.03431,2011.4,2011.3,6.3988]
[1743104413552,3.03431,2011.4,2011.3,3.191]
[1743104413959,0.9947,2011.0,2010.9,1.00215768]
[1743104414173,0.9947,2011.0,2010.9,4.19315768]
[1743104415063,2.4235,2011.0,2010.9,4.19315768]
[1743104416661,2.4235,2011.0,2010.9,3.19845768]
[1743104416858,2.4235,2011.0,2010.9,4.19320768]
[1743104418967,2.4235,2011.0,2010.9,5.59570768]
[1743104421064,2.4235,2011.0,2010.9,4.19320768]
[1743104421666,2.4235,2011.0,2010.9,3.19845768]
[1743104421869,2.4235,2011.0,2010.9,4.19320768]
[1743104422269,2.4235,2011.0,2010.9,5.61300768]
[1743104426667,1.4288,2011.0,2010.9,5.61300768]
[1743104426878,2.4235,2011.0,2010.9,5.61300768]
[1743104430069,3.2078,2011.5,2011.0,2.48677]
[1743104430277,1.3741,2011.6,2011.3,3.2078]
[1743104430473,2.36855,2011.6,2011.5,0.99446]
[1743104430771,0.6548,2011.6,2011.5,0.99446]
[1743104430976,3.2078,2011.8,2011.7,0.99436]
[1743104431379,4.5259,2011.8,2011.7,0.99436]
[1743104431579,5.52023,2011.8,2011.7,2.36966]
[1743104434082,4.5259,2011.8,2011.7,2.36966]
[1743104434479,1.3181,2011.8,2011.7,2.36966]
[1743104434782,0.66225768,2011.9,2011.8,0.99431]
[1743104434978,0.66225768,2011.9,2011.8,2.40121]
[1743104435177,2.08135768,2011.9,2011.8,2.40121]
[1743104435375,0.00745768,2011.9,2011.8,2.40121]
[1743104435684,0.00745768,2011.9,2011.8,3.10641]
[1743104435889,0.99415,2012.2,2012.1,0.99416]
[1743104437179,2.40625,2012.2,2012.1,2.37476]
[1743104439583,1.4121,2012.2,2012.1,2.37476]
[1743104440785,3.21525768,2012.4,2012.1,1.3806]
[1743104440983,3.21525768,2012.4,2012.3,0.99406]
[1743104441180,0.00745768,2012.4,2012.3,4.18406]
[1743104441484,0.00745768,2012.4,2012.3,5.59696]
[1743104441687,1.32175768,2012.4,2012.3,5.59696]
[1743104444087,1.32175768,2012.4,2012.3,6.30526]
[1743104444293,0.00745768,2012.4,2012.3,6.30526]
[1743104445392,2.33266768,2012.4,2012.3,5.59696]
[1743104445883,1.33865768,2012.4,2012.3,5.59696]
[1743104446283,1.33865768,2012.4,2012.3,6.30526]
[1743104446685,0.00745768,2012.4,2012.3,6.30526]
[1743104446889,5.69172,2013.4,2012.7,0.99386]
[1743104447195,1.9978,2013.1,2013.0,0.99372]
[1743104447395,1.3312,2013.1,2013.0,4.18372]
[1743104447779,1.3312,2013.1,2013.0,26.08372]
[1743104448000,1.3312,2013.1,2013.0,27.46612]
[1743104449086,2.32487,2013.1,2013.0,27.46612]
[1743104450002,1.3312,2013.1,2013.0,27.46612]
[1743104450191,2.32487,2013.1,2013.0,27.46612]
[1743104450391,1.3312,2013.1,2013.0,27.46612]
[1743104451397,2.32487,2013.1,2013.0,27.46612]
[1743104451591,1.3312,2013.1,2013.0,27.46612]
[1743104452297,2.32487,2013.1,2013.0,27.46612]
[1743104452492,2.32487,2013.1,2013.0,2.37612]
[1743104452800,0.99377,2012.9,2012.8,3.19645768]
[1743104453492,3.06497,2012.9,2012.8,0.00745768]
[1743104453798,3.06497,2012.9,2012.7,3.189]
[1743104453799,0.99386,2012.7,2012.6,50.112]
[1743104454391,2.42406,2012.7,2012.6,50.112]
[1743104458595,0.99396,2012.5,2012.4,0.00745768]
[1743104460299,1.4302,2012.7,2012.6,0.99391]
[1743104460495,2.42406,2012.7,2012.6,4.18291]
[1743104460700,1.4302,2012.7,2012.6,4.18291]
[1743104460895,1.4302,2012.7,2012.6,5.61951]
[1743104461700,0.67195768,2012.9,2012.8,0.99381]
[1743104462003,0.00745768,2012.9,2012.8,4.20161]
[1743104463107,1.31545768,2012.9,2012.8,4.20161]
[1743104463705,0.00745768,2012.9,2012.8,4.20161]
[1743104466701,3.9028,2013.4,2013.3,0.99357]
[1743104467695,4.89633,2013.4,2013.3,0.99357]
[1743104468114,6.24023,2013.4,2013.3,0.99357]
[1743104468608,0.99357,2013.3,2013.2,4.18158]
[1743104468810,2.33747,2013.3,2013.2,4.18158]
[1743104469204,0.99362,2013.2,2013.1,0.99366]
[1743104469410,2.37612,2013.2,2013.1,4.18166]
[1743104469705,2.37612,2013.2,2013.1,4.18167]
[1743104470810,2.37612,2013.2,2013.1,3.188]
[1743104471201,1.3825,2013.2,2013.1,0.99367]
[1743104472405,0.99372,2013.1,2013.0,0.99368]
[1743104472606,0.99372,2013.1,2013.0,2.32048]
[1743104473007,1.65802,2013.1,2013.0,2.32048]
[1743104473314,2.37614,2013.2,2013.1,0.99367]
[1743104475306,0.99367,2013.1,2013.0,2.32048]
[1743104475601,0.99372,2013.0,2012.9,3.188]
[1743104475808,0.99377,2012.9,2012.8,54.29759]
[1743104476008,1.4101,2012.9,2012.8,57.48559]
[1743104476210,2.40387,2012.9,2012.8,57.48559]
[1743104484313,2.40387,2012.9,2012.8,58.81069]
[1743104485322,2.40387,2012.9,2012.8,55.60289]
[1743104486613,2.40387,2012.9,2012.8,54.6091]
[1743104486814,2.40387,2012.9,2012.8,55.60291]
[1743104487016,0.99396,2012.5,2012.4,3.21525768]
[1743104487222,0.99396,2012.5,2012.4,7.39726768]
[1743104487417,0.99396,2012.5,2012.4,0.00745768]
[1743104487815,2.32886,2012.5,2012.4,0.00745768]
[1743104489217,0.99411,2012.2,2012.1,50.092]
[1743104489914,0.99426,2011.9,2011.8,7.39008]
[1743104490519,2.32915,2012.0,2011.9,0.99426]
[1743104490723,2.32915,2012.0,2011.9,2.32716]
[1743104491023,1.3349,2012.0,2011.9,2.32716]
[1743104491225,2.32911,2012.0,2011.9,2.32716]
[1743104492520,1.3349,2012.0,2011.9,2.32716]
[1743104492820,2.32911,2012.0,2011.9,2.32716]
[1743104493323,1.3349,2012.0,2011.9,2.32716]
[1743104493625,2.32911,2012.0,2011.9,2.32716]
[1743104494318,2.32911,2012.0,2011.9,1.3329]
[1743104494622,0.99426,2011.9,2011.8,6.3958]
[1743104494824,2.43706,2011.9,2011.8,6.3958]
[1743104495122,0.99431,2011.8,2011.7,3.188]
[1743104495315,0.99436,2011.7,2011.6,2.31524768]
[1743104495717,2.43716,2011.7,2011.6,2.31524768]
[1743104498227,2.43716,2011.7,2011.6,1.00184768]
[1743104498426,2.43716,2011.7,2011.6,4.19084768]
[1743104498927,2.43716,2011.7,2011.6,5.61544768]
[1743104499123,2.43716,2011.7,2011.6,0.00745768]
[1743104499424,5.64496,2011.7,2011.6,0.00745768]
[1743104501818,5.64496,2011.7,2011.6,2.32556768]
[1743104502130,2.43716,2011.7,2011.6,2.32556768]
[1743104504230,2.43716,2011.7,2011.6,1.33115768]
[1743104509433,5.64496,2011.7,2011.6,0.00745768]
[1743104509629,0.99461,2011.2,2011.1,3.2078]
[1743104509835,0.99465,2011.1,2011.0,4.5673]
[1743104510037,2.99985,2011.1,2011.0,3.19]
[1743104512334,0.9947,2011.0,2010.9,1.3773]
[1743104512636,2.3747,2011.0,2010.9,3.19]
[1743104512836,3.0611,2011.0,2010.9,3.19]
[1743104515130,3.0611,2011.0,2010.9,4.4983]
[1743104517434,3.0611,2011.0,2010.9,3.19]
[1743104517740,0.99475,2010.9,2010.8,1.31575768]
[1743104517939,2.38935,2010.9,2010.8,1.31575768]
[1743104518540,2.38935,2010.9,2010.8,2.31055768]
[1743104520540,2.38935,2010.9,2010.8,1.31575768]
[1743104520739,2.38935,2010.9,2010.8,1.00225768]
[1743104521244,2.38935,2010.9,2010.8,2.41475768]
[1743104522733,2.38935,2010.9,2010.8,3.09895768]
[1743104523945,2.38935,2010.9,2010.8,2.41475768]
[1743104525243,1.3946,2010.9,2010.8,2.41475768]
[1743104525445,2.38935,2010.9,2010.8,2.41475768]
[1743104525938,0.99474,2011.0,2010.9,0.9947]
[1743104526142,2.41534768,2011.1,2011.0,0.9947]
[1743104526545,2.41534768,2011.1,2011.0,2.3562]
[1743104526847,2.41534768,2011.1,2011.0,1.3615]
[1743104528245,2.41534768,2011.1,2011.0,2.3562]
[1743104529248,2.41534768,2011.1,2011.0,1.3615]
[1743104529448,2.41534768,2011.1,2011.0,2.3562]
[1743104529747,2.41534768,2011.1,2011.0,1.3615]
[1743104530149,2.41534768,2011.1,2011.0,2.3562]
[1743104532649,2.41534768,2011.1,2011.0,5.5472]
[1743104533452,2.41530768,2011.1,2011.0,5.5472]
[1743104540263,1.42065768,2011.1,2011.0,5.5472]
[1743104541060,1.42065768,2011.1,2011.0,6.2281]
[1743104545259,1.42065768,2011.1,2011.0,5.5472]
[1743104545260,2.41530768,2011.1,2011.0,5.5472]
[1743104546258,1.42065768,2011.1,2011.0,5.5472]
[1743104546561,2.41530768,2011.1,2011.0,5.5472]
[1743104546860,2.41530768,2011.1,2011.0,4.1847]
[1743104547163,0.9947,2011.0,2010.9,4.20252]
[1743104547355,3.0059,2011.0,2010.9,7.39252]
[1743104548058,3.0059,2011.0,2010.9,3.19]
[1743104548960,0.99475,2010.9,2010.8,0.00745768]
[1743104549166,3.09795,2010.9,2010.8,0.00745768]
[1743104549458,3.09795,2010.9,2010.6,50.119]
[1743104549459,0.99485,2010.7,2010.6,53.309]
[1743104549660,0.99485,2010.7,2010.6,54.3039]
[1743104550160,3.07775,2010.7,2010.6,54.3039]
[1743104550357,3.07775,2010.7,2010.6,51.1139]
[1743104553360,3.07775,2010.7,2010.6,50.119]
[1743104553776,0.9949,2010.6,2010.5,0.99492]
[1743104553963,2.3679,2010.6,2010.5,0.99492]
[1743104554767,2.3679,2010.6,2010.5,0.99495]
[1743104554959,0.99495,2010.5,2010.4,26.49805768]
[1743104555159,3.09015,2010.5,2010.4,26.49805768]
[1743104555469,3.09015,2010.5,2010.4,4.59805768]
[1743104556370,3.09015,2010.5,2010.4,1.40805768]
[1743104556669,3.09015,2010.5,2010.4,2.40303768]
[1743104558172,3.09015,2010.5,2010.4,0.00745768]
[1743104559666,3.09015,2010.5,2010.4,1.00245768]
[1743104560567,3.09015,2010.5,2010.4,0.00745768]
[1743104561972,3.09015,2010.5,2010.4,1.00245768]
[1743104563572,3.09015,2010.5,2010.4,0.00745768]
[1743104564280,3.09015,2010.5,2010.4,1.00245768]
[1743104564871,3.09015,2010.5,2010.4,0.00745768]
[1743104565078,3.09015,2010.5,2010.4,1.00245768]
[1743104566680,3.09015,2010.5,2010.4,0.00745768]
[1743104566983,0.99515,2010.1,2010.0,50.141]
[1743104567681,3.04505,2010.1,2010.0,50.141]
[1743104570080,3.72645,2010.1,2010.0,50.141]
[1743104575682,3.72645,2010.1,2010.0,51.1362]
[1743104575887,2.48765,2010.3,2010.1,0.9951]
[1743104576083,2.33703,2010.2,2010.1,3.044]
[1743104576278,2.33703,2010.2,2010.1,6.235]
[1743104576480,0.9951,2010.3,2010.2,0.99505]
[1743104576788,2.337,2010.3,2010.2,2.33545]
[1743104578386,1.3419,2010.3,2010.2,2.33545]
[1743104578688,3.2078,2010.5,2010.2,2.33545]
[1743104578689,4.20279,2010.5,2010.4,0.995]
[1743104578981,5.61929,2010.5,2010.4,0.995]
[1743104579789,0.995,2010.4,2010.3,2.3506]
[1743104579988,2.4115,2010.4,2010.3,2.3506]
[1743104580287,2.4115,2010.4,2010.3,0.995]
[1743104580483,0.9951,2010.3,2010.2,4.18606]
[1743104580689,2.4116,2010.3,2010.2,4.18606]
[1743104586792,1.4165,2010.3,2010.2,4.18606]
[1743104587694,2.41155,2010.3,2010.2,4.18606]
[1743104591793,1.4165,2010.3,2010.2,4.18606]
[1743104591997,1.4165,2010.3,2010.2,4.86696]
[1743104593100,2.41155,2010.3,2010.2,4.86696]
[1743104593291,1.4165,2010.3,2010.2,4.86696]
[1743104593489,0.99501,2010.4,2010.3,0.99505]
[1743104593695,2.30921,2010.4,2010.3,0.99505]
[1743104593888,2.30921,2010.4,2010.3,2.38635]
[1743104594092,0.99499,2010.5,2010.4,0.99495]
[1743104594292,0.99499,2010.5,2010.4,2.38625]
[1743104594691,2.33419,2010.5,2010.4,2.38625]
[1743104595093,1.3392,2010.5,2010.4,2.38625]
[1743104595501,2.33415,2010.5,2010.4,2.38625]
[1743104600603,1.3392,2010.5,2010.4,2.38625]
[1743104600806,2.33415,2010.5,2010.4,2.38625]
[1743104602404,1.3392,2010.5,2010.4,2.38625]
[1743104602800,0.6534,2010.7,2010.4,1.3913]
[1743104603006,1.366,2010.6,2010.5,5.62845]
[1743104603300,3.2078,2010.8,2010.7,0.99485]
[1743104603497,4.2026,2010.8,2010.7,0.99485]
[1743104604405,5.5686,2010.8,2010.7,0.99485]
[1743104604796,0.99485,2010.7,2010.6,2.43735]
[1743104604997,3.02445,2010.7,2010.6,2.43735]
[1743104605392,0.9949,2010.6,2010.5,4.18591]
[1743104605604,2.3609,2010.6,2010.5,4.18591]
[1743104607603,2.3609,2010.6,2010.5,5.54221]
[1743104609709,1.366,2010.6,2010.5,5.54221]
[1743104613016,2.3609,2010.6,2010.5,5.54221]
[1743104613210,1.366,2010.6,2010.5,5.54221]
[1743104613407,2.3609,2010.6,2010.5,5.54221]
[1743104613717,1.366,2010.6,2010.5,5.54221]
[1743104613917,2.3609,2010.6,2010.5,5.54221]